bitfinex/quotes_SOLUSD_20250722
["timestamp","ask_amount","ask_price","bid_price","bid_amount"]
[1753207904983,0.06,201.93,201.91,14.92778048]
[1753207905151,0.06,201.93,201.92,14.92778048]
[1753207905486,0.06,201.93,201.86,5.66370188]
[1753207905673,0.06,201.93,201.91,14.92778048]
[1753207906483,0.06,201.93,201.92,15.63778048]
[1753207906661,0.06,201.93,201.91,15.63778048]
[1753207906849,0.06,201.93,201.92,14.92778048]
[1753207907051,0.06,201.93,201.92,15.63778048]
[1753207907788,0.06,201.93,201.92,14.92778048]
[1753207908000,0.06,201.93,201.92,15.60778048]
[1753207908290,0.06,201.93,201.87,66.40207468]
[1753207908291,0.06,201.93,201.87,6.2795]
[1753207908455,0.06,201.93,201.92,15.60778048]
[1753207909249,4.65665898,202.06,201.92,81.77778048]
[1753207909477,4.65665898,202.06,201.97,14.92778048]
[1753207909478,14.92778048,202.04,201.97,14.92778048]
[1753207909686,26.72,202.06,201.98,14.92778048]
[1753207909924,14.92778048,202.05,201.98,14.92778048]
[1753207910077,31.6691224,202.06,201.98,14.92778048]
[1753207910256,26.72,202.06,201.99,14.92778048]
[1753207910449,26.72,202.06,201.98,4.95098363]
[1753207910794,14.92778048,202.08,202.02,14.92778048]
[1753207911252,0.72,202.07,202.0,14.92778048]
[1753207911454,0.72,202.07,202.01,14.92778048]
[1753207911680,51.38778048,202.09,202.03,14.92778048]
[1753207911878,0.72,202.1,202.04,14.92778048]
[1753207912356,20.5958391,202.1,202.04,14.92778048]
[1753207912552,0.72,202.1,202.05,14.92778048]
[1753207912752,0.72,202.1,202.01,0.68]
[1753207912753,0.72,202.09,202.03,14.92778048]
[1753207912977,14.92778048,202.08,202.01,15.60778048]
[1753207913160,0.72,202.09,202.03,14.92778048]
[1753207913672,19.87561767,202.11,202.04,14.92778048]
[1753207913881,14.92778048,202.06,201.98,0.68]
[1753207914188,0.14216157,202.09,201.98,0.68]
[1753207914189,14.92778048,202.05,201.98,15.60778048]
[1753207914402,14.92778048,202.05,201.99,14.92778048]
[1753207914698,52.04778048,202.07,202.0,15.60778048]
[1753207914983,52.04778048,202.07,202.0,0.68]
[1753207915181,14.92778048,202.05,201.99,14.92778048]
[1753207915358,15.64778048,202.04,201.97,14.92778048]
[1753207915562,15.64778048,202.04,201.95,4.95172072]
[1753207915563,0.72,202.04,201.98,14.92778048]
[1753207916084,15.64778048,202.04,201.97,14.92778048]
[1753207916260,0.72,202.04,201.98,14.92778048]
[1753207916681,0.72,202.04,201.98,19.87874589]
[1753207918201,0.72,202.04,201.98,14.92778048]
[1753207919281,0.72,202.04,201.98,9.87716832]
[1753207919691,0.78,202.04,201.98,9.87716832]
[1753207920195,0.78,202.04,201.92,0.68]
[1753207920196,9.87716832,201.99,201.92,0.68]
[1753207920500,9.87716832,201.96,201.9,9.87716832]
[1753207920806,9.87716832,201.96,201.84,9.90716832]
[1753207920807,9.87716832,201.91,201.84,0.03]
[1753207920990,9.87716832,201.87,201.84,0.03]
[1753207921497,36.32,201.89,201.84,0.03]
[1753207921801,12.189969,202.03,201.89,1.7]
[1753207922005,26.0,201.99,201.9,0.68]
[1753207922176,0.72,201.98,201.86,4.95392846]
[1753207922368,0.14216157,202.01,201.91,9.87716832]
[1753207922569,9.87716832,201.99,201.92,9.87716832]
[1753207922794,9.87716832,201.97,201.91,0.68]
[1753207923290,9.87716832,201.97,201.9,9.87716832]
[1753207923465,9.87716832,201.98,201.88,0.68]
[1753207923667,9.87716832,201.98,201.9,9.87716832]
[1753207923988,9.87716832,201.97,201.9,9.87716832]
[1753207924799,9.93716832,201.98,201.91,9.87716832]
[1753207925189,14.97445439,201.98,201.91,14.91445439]
[1753207925389,14.91445439,201.96,201.89,21.56764672]
[1753207925876,15.63445439,201.97,201.9,14.91445439]
[1753207926191,15.47445439,201.98,201.91,14.91445439]
[1753207926398,0.86216157,201.97,201.89,1.7]
[1753207926696,14.91445439,201.92,201.85,14.91445439]
[1753207927480,0.72,201.93,201.87,14.91445439]
[1753207927682,0.72,201.96,201.88,14.91445439]
[1753207927880,0.72,201.96,201.84,4.98426537]
[1753207927881,36.98,201.96,201.9,14.91445439]
[1753207928186,0.06,201.98,201.94,14.91445439]
[1753207928371,0.72,201.97,201.9,4.95284449]
[1753207928577,0.72,201.97,201.91,14.91445439]
[1753207928981,0.06,201.98,201.91,14.91445439]
[1753207929182,0.06,201.98,201.94,14.91445439]
[1753207929992,0.06,201.98,201.94,19.86637261]
[1753207930305,0.06,201.98,201.94,14.91445439]
[1753207931398,0.06,201.98,201.93,14.91445439]
[1753207931600,0.06,201.98,201.93,15.59445439]
[1753207931805,0.06,201.98,201.94,14.91445439]
[1753207932103,0.06,201.98,201.95,14.91445439]
[1753207932315,14.91445439,201.96,201.95,1.7]
[1753207932486,15.63445439,201.96,201.95,1.7]
[1753207932877,0.72,201.96,201.95,1.7]
[1753207933082,15.63445439,201.96,201.95,1.7]
[1753207933303,15.63445439,201.96,201.89,2.38]
[1753207933492,14.91445439,201.93,201.86,0.68]
[1753207933694,14.91445439,201.93,201.86,20.54838285]
[1753207933912,14.91445439,201.94,201.87,14.91445439]
[1753207934708,15.77661596,201.95,201.88,19.86781731]
[1753207934883,15.05661596,201.96,201.89,15.59445439]
[1753207935213,15.05661596,201.96,201.89,0.68]
[1753207935214,14.91445439,201.95,201.89,0.68]
[1753207935610,15.05661596,201.96,201.89,0.68]
[1753207935790,15.05661596,201.96,201.89,15.59445439]
[1753207935995,51.83445439,201.97,201.9,14.91445439]
[1753207936201,36.2,201.97,201.93,14.91445439]
[1753207936518,0.06,201.98,201.93,15.59445439]
[1753207936686,0.06,201.98,201.95,19.86593891]
[1753207937306,0.06,201.98,201.97,14.91445439]
[1753207937696,0.06,201.98,201.97,15.63445439]
[1753207938898,0.06,201.98,201.97,20.58568477]
[1753207940807,0.06,201.98,201.97,50.27568477]
[1753207941328,0.06,201.98,201.97,35.36123038]
[1753207941615,0.06,201.98,201.97,20.58568477]
[1753207943290,0.06,201.98,201.97,22.28568477]
[1753207943490,0.06,201.98,201.92,15.63445439]
[1753207943722,0.06,201.98,201.94,14.91445439]
[1753207943931,0.06,201.98,201.96,14.91445439]
[1753207944095,14.97445439,201.98,201.92,14.91445439]
[1753207944420,0.06,201.98,201.92,14.91445439]
[1753207944809,0.06,201.98,201.93,14.91445439]
[1753207945018,0.06,201.98,201.93,19.86665041]
[1753207945327,0.06,201.98,201.93,20.58665041]
[1753207945628,0.06,201.98,201.94,15.63445439]
[1753207945834,0.06,201.98,201.97,14.91445439]
[1753207946810,0.73,201.98,201.91,4.95270169]
[1753207947014,0.73,201.98,201.92,14.91445439]
[1753207947321,0.73,201.98,201.92,14.83479419]
[1753207947507,0.73,201.98,201.92,9.88236538]
[1753207947692,0.73,201.98,201.92,14.83481865]
[1753207948209,0.73,201.98,201.93,9.88236538]
[1753207948406,0.06,201.98,201.95,9.88236538]
[1753207948613,0.06,201.98,201.94,9.88236538]
[1753207949627,0.06,201.98,201.93,14.83444336]
[1753207949993,0.06,201.98,201.94,9.88236538]
[1753207951113,0.06,201.98,201.94,14.83410866]
[1753207951718,0.06,201.98,201.94,4.95174328]
[1753207952128,0.06,201.98,201.94,6.65174328]
[1753207952306,0.06,201.98,201.95,0.72]
[1753207952821,0.06,201.98,201.94,17.25410866]
[1753207953318,0.06,201.98,201.94,1.7]
[1753207953509,0.06,201.98,201.94,6.65195061]
[1753207954732,0.06,201.98,201.88,65.79]
[1753207954733,9.88236538,201.95,201.84,0.03]
[1753207954976,9.88236538,201.9,201.84,0.03]
[1753207955109,21.88012934,201.89,201.84,0.03]
[1753207955310,4.96735795,201.87,201.84,0.03]
[1753207955508,4.82519638,201.87,201.84,0.03]
[1753207955832,26.0,201.95,201.86,10.63236538]
[1753207956130,26.0,201.96,201.91,9.88236538]
[1753207956427,26.0,201.96,201.9,9.88236538]
[1753207956615,26.0,201.96,201.91,9.88236538]
[1753207956819,11.42566538,201.97,201.92,9.88236538]
[1753207956820,1.5433,201.97,201.92,9.88236538]
[1753207957209,12.09566538,201.97,201.91,15.55496926]
[1753207957411,36.06,201.98,201.93,9.88236538]
[1753207957710,36.06,201.98,201.94,9.88236538]
[1753207958014,36.06,201.98,201.96,9.88236538]
[1753207958222,0.06,201.98,201.96,10.60236538]
[1753207958424,0.06,201.98,201.97,10.60236538]
[1753207958608,0.06,202.03,201.97,10.60236538]
[1753207958821,0.06,202.03,202.02,9.88236538]
[1753207959213,0.06,202.03,202.02,15.55237033]
[1753207959822,0.06,202.03,202.01,4.95020261]
[1753207960045,0.06,202.03,202.02,9.88236538]
[1753207960249,0.06,202.03,202.02,10.60236538]
[1753207960956,0.06,202.03,202.0,9.88236538]
[1753207961121,0.06,202.03,201.99,5.67072042]
[1753207961542,0.67,202.02,201.96,9.88236538]
[1753207961751,0.67,202.02,201.95,4.95148332]
[1753207961927,9.88236538,201.99,201.93,4.95221116]
[1753207962120,9.88236538,202.0,201.93,14.83457654]
[1753207962325,9.88236538,202.01,201.95,9.88236538]
[1753207962844,9.88236538,202.01,201.94,10.60236538]
[1753207963016,0.67,202.02,201.95,9.88236538]
[1753207963337,9.88236538,201.97,201.9,0.72]
[1753207963545,0.67,201.98,201.94,0.03]
[1753207963736,0.67,201.97,201.94,0.03]
[1753207964334,9.88236538,201.99,201.94,0.03]
[1753207964823,0.20216157,202.01,201.94,0.03]
[1753207965043,26.06,202.01,201.95,9.88236538]
[1753207965233,35.94236538,202.01,201.94,11.61236538]
[1753207965434,0.06,202.01,201.95,4.95172072]
[1753207965636,0.06,202.01,201.95,14.8340861]
[1753207966258,9.94236538,202.01,201.95,4.95172072]
[1753207968556,9.88236538,201.97,201.94,1.73]
[1753207968765,9.88236538,201.95,201.94,1.73]
[1753207968941,9.88236538,201.95,201.94,0.03]
[1753207969876,10.71452695,201.95,201.94,0.03]
[1753207970035,27.49921092,201.95,201.94,0.03]
[1753207970860,17.61684554,201.95,201.94,0.03]
[1753207971075,10.71452695,201.95,201.94,0.03]
[1753207971368,16.92684554,201.88,201.73,10.55236538]
[1753207971674,9.88236538,201.74,201.69,0.67]
[1753207971962,9.88236538,201.74,201.65,9.88236538]
[1753207971963,9.88236538,201.7,201.65,0.67]
[1753207972150,9.88236538,201.68,201.66,0.67]
[1753207972348,9.88236538,201.68,201.67,0.67]
[1753207972662,0.69,201.73,201.63,0.67]
[1753207972849,9.88236538,201.67,201.63,0.67]
[1753207973051,0.69,201.73,201.6,9.88236538]
[1753207973052,9.88236538,201.68,201.6,9.88236538]
[1753207973243,14.95567176,201.67,201.64,0.67]
[1753207973550,14.95567176,201.67,201.65,0.67]
[1753207973964,1.6571,201.79,201.67,16.78468397]
[1753207974146,14.95567176,201.73,201.68,0.67]
[1753207974350,14.95567176,201.7,201.68,0.67]
[1753207975361,14.95567176,201.7,201.66,0.67]
[1753207975562,14.95567176,201.7,201.68,0.67]
[1753207975868,14.95567176,201.69,201.68,0.67]
[1753207976052,14.95567176,201.7,201.68,0.67]
[1753207976471,0.14216157,201.76,201.69,0.67]
[1753207976640,14.95567176,201.72,201.69,0.67]
[1753207977258,0.14216157,201.76,201.69,0.67]
[1753207977259,14.95567176,201.71,201.69,0.67]
[1753207977487,0.14216157,201.76,201.64,14.95567176]
[1753207977488,14.95567176,201.7,201.66,0.67]
[1753207977964,14.95567176,201.71,201.67,0.67]
[1753207978169,0.14216157,201.76,201.67,0.67]
[1753207978170,14.95567176,201.73,201.67,0.67]
[1753207978472,14.95567176,201.71,201.67,0.67]
[1753207978646,0.14216157,201.76,201.68,0.67]
[1753207978846,14.95567176,201.71,201.68,0.67]
[1753207979056,14.95567176,201.72,201.69,0.67]
[1753207979565,14.95567176,201.72,201.69,5.62808457]
[1753207979772,14.95567176,201.72,201.7,0.67]
[1753207979942,14.95567176,201.71,201.67,4.95851686]
[1753207980144,14.95567176,201.71,201.67,5.62851686]
[1753207980456,14.95567176,201.72,201.68,0.67]
[1753207980642,14.95567176,201.72,201.69,0.67]
[1753207980838,14.95567176,201.72,201.63,36.22]
[1753207980839,14.95567176,201.7,201.59,0.67]
[1753207981159,14.95567176,201.61,201.59,0.67]
[1753207981542,14.95567176,201.61,201.59,5.63052668]
[1753207981743,0.14216157,201.7,201.59,4.96052668]
[1753207981937,2.58744366,201.76,201.59,4.96052668]
[1753207981938,2.3132,201.78,201.67,14.95567176]
[1753207982159,0.69,201.77,201.66,15.62567176]
[1753207982338,14.95567176,201.74,201.67,14.95567176]
[1753207982742,14.95567176,201.7,201.63,0.67]
[1753207982966,14.95567176,201.69,201.63,0.67]
[1753207983170,14.95567176,201.7,201.63,15.62567176]
[1753207983468,14.95567176,201.73,201.67,19.91406239]
[1753207983668,14.95567176,201.73,201.67,4.95839063]
[1753207984759,15.78783333,201.74,201.68,14.95567176]
[1753207985146,0.83216157,201.74,201.7,14.95567176]
[1753207985341,0.69,201.73,201.7,14.95567176]
[1753207985765,8.68378424,201.81,201.72,14.95567176]
[1753207985766,6.2315,201.81,201.72,14.95567176]
[1753207985960,6.9215,201.81,201.77,14.95567176]
[1753207986556,3.88497432,201.83,201.78,14.95567176]
[1753207986758,1.5937,201.84,201.79,14.95567176]
[1753207986975,6.7045,201.86,201.8,14.95567176]
[1753207987149,0.14216157,201.85,201.8,14.95567176]
[1753207987457,0.69,201.85,201.8,14.95567176]
[1753207988571,0.69,201.84,201.79,14.95567176]
[1753207988871,0.69,201.84,201.8,14.95567176]
[1753207989281,6.0145,201.86,201.81,14.95567176]
[1753207989753,6.7045,201.86,201.81,14.95567176]
[1753207990155,6.0145,201.86,201.8,19.91090949]
[1753207990355,0.69,201.85,201.8,19.91090949]
[1753207991545,6.0145,201.86,201.8,4.95523773]
[1753207991748,36.28,201.87,201.82,14.95567176]
[1753207991962,36.28,201.87,201.82,19.91043986]
[1753207992175,36.97,201.87,201.82,19.91043986]
[1753207992460,0.69,201.86,201.82,19.91043986]
[1753207992780,0.69,201.86,201.8,20.58091194]
[1753207992982,51.23567176,201.87,201.8,20.58091194]
[1753207993157,51.23567176,201.87,201.81,14.95567176]
[1753207993359,36.28,201.87,201.81,14.95567176]
[1753207993762,36.28,201.87,201.84,14.95567176]
[1753207994279,36.28,201.87,201.84,19.90995137]
[1753207994786,26.69,201.88,201.84,19.90995137]
[1753207994954,26.69,201.88,201.82,19.91057185]
[1753207995154,7.12796157,201.91,201.84,9.89412608]
[1753207995357,0.06,201.91,201.89,9.89412608]
[1753207996085,0.06,201.91,201.9,4.952947]
[1753207996287,0.06,201.91,201.9,14.84707308]
[1753207996491,0.06,201.91,201.9,15.51707308]
[1753207997057,0.06,201.95,201.9,27.89944058]
[1753207997279,0.06,201.95,201.94,9.89412608]
[1753207997672,0.06,201.95,201.94,10.61412608]
[1753207998263,0.06,201.95,201.94,15.56609201]
[1753207999362,0.06,201.95,201.94,5.67196593]
[1753207999591,0.06,201.95,201.94,15.56609201]
[1753208001758,0.06,201.95,201.94,5.67196593]
[1753208001959,0.06,201.95,201.94,15.56609201]
[1753208002385,0.06,201.95,201.94,32.35077598]
[1753208002761,0.06,202.03,201.94,54.62481688]
[1753208003090,0.06,202.03,202.0,9.89412608]
[1753208003275,0.06,202.03,202.0,10.38917558]
[1753208003464,0.06,202.03,202.0,10.61412608]
[1753208004076,0.06,202.03,202.0,0.72]
[1753208004299,0.06,202.03,202.0,10.61412608]
[1753208004505,0.06,202.03,202.0,15.56462112]
[1753208005014,0.06,202.03,202.0,64.23435459]
[1753208005387,0.06,202.03,202.0,64.37651616]
[1753208005710,0.06,202.04,202.03,46.47468397]
[1753208005992,1e-08,202.04,202.03,92.42881005]
[1753208006201,1e-08,202.06,202.03,93.78594761]
[1753208006411,0.06,202.1,202.07,4.94878012]
[1753208006701,0.06,202.13,202.1,46.47468397]
[1753208006901,0.06,202.13,202.12,26.67881005]
[1753208007103,0.06,202.13,202.12,45.95412608]
[1753208007400,0.06,202.13,202.12,46.67412608]
[1753208007902,0.06,202.13,202.12,63.45881005]
[1753208008590,0.06,202.15,202.12,63.45881005]
[1753208008591,0.06,202.15,202.13,46.47468397]
[1753208008781,0.06,202.15,202.13,57.58354116]
[1753208008981,1e-08,202.16,202.14,83.08881005]
[1753208009185,1e-08,202.18,202.17,46.47468397]
[1753208009391,0.2,202.22,202.17,46.47468397]
[1753208009392,0.2,202.22,202.17,102.30293613]
[1753208009589,0.2,202.22,202.18,40.30412608]
[1753208009911,1e-08,202.19,202.18,93.10881005]
[1753208010205,0.2,202.22,202.18,103.00293613]
[1753208010381,0.2,202.22,202.21,87.31416389]
[1753208010579,0.2,202.31,202.3,9.89412608]
[1753208011008,0.2,202.31,202.3,10.61412608]
[1753208011181,0.2,202.31,202.3,14.8540111]
[1753208011382,0.2,202.31,202.3,36.02]
[1753208011609,0.2,202.31,202.3,50.8740111]
[1753208011806,0.2,202.31,202.28,14.8540111]
[1753208012012,14.8540111,202.3,202.24,50.8740111]
[1753208012206,20.65692081,202.31,202.24,50.8740111]
[1753208012511,0.2,202.31,202.26,14.8540111]
[1753208012803,0.2,202.31,202.29,14.8540111]
[1753208012978,0.2,202.31,202.3,50.8540111]
[1753208013179,0.2,202.31,202.3,67.63869507]
[1753208013399,5.00072106,202.4,202.31,16.78468397]
[1753208013681,20.51473216,202.4,202.34,14.8540111]
[1753208013879,14.8540111,202.38,202.32,14.8540111]
[1753208014091,14.8540111,202.37,202.31,50.8740111]
[1753208014298,0.66,202.38,202.34,14.8540111]
[1753208014705,0.66,202.38,202.33,14.8540111]
[1753208015010,19.85472655,202.4,202.31,40.96269457]
[1753208015011,0.06,202.4,202.37,14.8540111]
[1753208015211,0.06,202.4,202.39,14.8540111]
[1753208015420,0.06,202.4,202.37,0.72]
[1753208015584,0.06,202.4,202.38,14.8540111]
[1753208015985,0.06,202.4,202.39,14.8540111]
[1753208017315,0.06,202.4,202.39,15.5740111]
[1753208018018,0.06,202.4,202.39,0.72]
[1753208018198,0.06,202.4,202.39,58.85279062]
[1753208018712,0.06,202.4,202.39,63.29965065]
[1753208018921,0.06,202.4,202.39,99.29965065]
[1753208019425,0.06,202.4,202.39,99.44181222]
[1753208019723,1e-08,202.4,202.39,99.93590777]
[1753208019920,0.06,202.44,202.43,26.0]
[1753208020131,0.06,202.44,202.43,108.63486774]
[1753208020419,0.06,202.44,202.43,109.35486774]
[1753208020709,0.06,202.44,202.43,128.98867432]
[1753208021289,0.06,202.44,202.43,129.13083589]
[1753208021614,0.2,202.56,202.52,16.78468397]
[1753208021818,0.2,202.56,202.55,14.8540111]
[1753208021988,0.2,202.56,202.47,0.14216157]
[1753208021989,0.66,202.55,202.49,14.8540111]
[1753208022590,0.2,202.56,202.54,14.8540111]
[1753208022899,0.2,202.56,202.55,19.79106367]
[1753208023104,0.2,202.56,202.55,20.51106367]
[1753208023293,0.2,202.56,202.55,14.8540111]
[1753208023694,15.7140111,202.56,202.47,0.72]
[1753208024015,14.8540111,202.51,202.45,36.0]
[1753208024189,15.5140111,202.51,202.45,36.0]
[1753208024386,0.66,202.51,202.45,50.8540111]
[1753208024804,15.5140111,202.51,202.45,36.0]
[1753208025027,0.14216157,202.55,202.45,36.0]
[1753208025028,14.8540111,202.55,202.48,14.8540111]
[1753208025315,14.8540111,202.55,202.48,50.8540111]
[1753208025510,14.8540111,202.55,202.49,14.8540111]
[1753208025716,14.8540111,202.54,202.48,50.8540111]
[1753208026216,0.66,202.53,202.48,36.0]
[1753208026418,0.66,202.53,202.43,17.50468397]
[1753208026419,14.8540111,202.49,202.43,36.0]
[1753208026712,14.8540111,202.45,202.38,14.8540111]
[1753208026919,14.8540111,202.44,202.39,36.02]
[1753208027426,15.5640111,202.44,202.39,36.02]
[1753208027716,15.5640111,202.44,202.37,19.79544609]
[1753208027717,14.8540111,202.42,202.36,0.72]
[1753208027920,14.8540111,202.41,202.34,50.8540111]
[1753208028609,14.8540111,202.42,202.36,14.8540111]
[1753208028998,0.71,202.46,202.38,14.8540111]
[1753208029195,26.0,202.48,202.38,14.8540111]
[1753208029196,26.0,202.48,202.42,14.8540111]
[1753208029417,26.0,202.49,202.44,14.8540111]
[1753208029612,26.0,202.49,202.45,14.8540111]
[1753208029797,0.71,202.48,202.44,14.8540111]
[1753208030198,0.71,202.47,202.44,0.03]
[1753208030517,0.77,202.5,202.44,14.8840111]
[1753208030717,0.06,202.5,202.48,44.5440111]
[1753208030919,0.06,202.5,202.47,14.8540111]
[1753208031123,0.06,202.5,202.48,15.5440111]
[1753208031330,0.06,202.5,202.48,14.8540111]
[1753208031830,0.06,202.5,202.49,14.8540111]
[1753208032037,0.06,202.5,202.48,14.8540111]
[1753208032239,0.06,202.5,202.45,14.8540111]
[1753208032533,0.77,202.5,202.45,14.8540111]
[1753208033206,0.06,202.5,202.45,19.79349842]
[1753208033411,0.06,202.5,202.47,14.8540111]
[1753208033830,0.06,202.5,202.44,0.03]
[1753208033831,0.71,202.49,202.44,0.03]
[1753208034043,0.71,202.48,202.44,0.03]
[1753208034634,14.8540111,202.49,202.44,0.03]
[1753208034937,0.06,202.5,202.48,14.8540111]
[1753208035139,0.06,202.5,202.48,9.82772033]
[1753208035343,0.06,202.5,202.49,9.82772033]
[1753208035524,0.06,202.5,202.49,10.51772033]
[1753208035726,0.06,202.5,202.49,0.69]
[1753208035923,0.06,202.5,202.49,10.51772033]
[1753208036139,0.06,202.5,202.49,27.79625584]
[1753208037046,1e-08,202.5,202.49,57.62841741]
[1753208037245,1e-08,202.5,202.49,62.61762562]
[1753208040558,26.0,202.62,202.54,29.69]
[1753208040742,0.71,202.61,202.52,14.81692854]
[1753208040916,14.81692854,202.59,202.53,14.81692854]
[1753208041114,0.14216157,202.57,202.5,35.98]
[1753208041343,6.2985,202.63,202.56,14.81692854]
[1753208041546,6.5419,202.69,202.62,14.81692854]
[1753208041747,0.71,202.7,202.67,14.81692854]
[1753208041978,11.47411438,202.75,202.69,14.81692854]
[1753208042180,11.47411438,202.75,202.7,14.81692854]
[1753208042347,0.71,202.74,202.7,14.81692854]
[1753208042546,14.81692854,202.72,202.66,50.87692854]
[1753208042746,6.5419,202.75,202.66,36.06]
[1753208042946,6.5419,202.75,202.72,14.81692854]
[1753208043147,2.4873,202.77,202.74,14.81692854]
[1753208043148,0.2,202.77,202.74,14.81692854]
[1753208043373,0.2,202.77,202.76,40.81692854]
[1753208043573,0.06,202.83,202.81,16.78468397]
[1753208043751,1e-08,202.83,202.82,68.19466053]
[1753208043954,0.06,202.92,202.85,26.0]
[1753208044279,0.06,202.92,202.86,123.90456331]
[1753208044449,0.06,202.92,202.86,46.47468397]
[1753208044653,0.77,202.87,202.82,29.69]
[1753208044872,0.06,202.87,202.83,36.81]
[1753208045184,0.06,202.87,202.86,14.81692854]
[1753208045363,0.06,202.87,202.86,57.60161251]
[1753208045677,0.06,202.87,202.86,99.32112054]
[1753208045975,0.06,202.87,202.86,36.1]
[1753208046844,0.77,202.87,202.82,36.1]
[1753208047051,15.58692854,202.87,202.82,36.1]
[1753208047353,0.77,202.87,202.82,36.1]
[1753208047552,0.06,202.87,202.85,14.81692854]
[1753208047755,0.06,202.87,202.86,67.70161251]
[1753208048175,0.06,202.87,202.86,68.39161251]
[1753208048556,0.06,202.87,202.86,94.39161251]
[1753208049462,0.06,202.87,202.86,109.20854105]
[1753208049658,0.06,202.87,202.86,99.32112054]
[1753208051176,0.06,202.87,202.86,58.62635357]
[1753208051379,1e-08,202.87,202.86,88.26021065]
[1753208051558,0.06,202.92,202.9,16.78468397]
[1753208051877,0.06,202.92,202.91,72.58990584]
[1753208052052,0.06,202.92,202.91,72.73206741]
[1753208052381,0.06,202.92,202.91,73.91489674]
[1753208052587,0.71,203.04,202.95,42.78468397]
[1753208052767,0.71,203.04,202.99,14.81692854]
[1753208052953,0.71,203.03,202.98,14.81692854]
[1753208053159,26.0,203.07,202.98,50.85692854]
[1753208053160,0.71,203.02,202.98,50.85692854]
[1753208053360,4.92465316,203.06,202.98,50.85692854]
[1753208053361,46.4515817,203.06,202.99,14.81692854]
[1753208053669,20.45182388,203.05,202.99,36.04]
[1753208053977,20.45182388,203.05,202.99,50.85692854]
[1753208054182,20.45182388,203.05,202.99,36.04]
[1753208054352,5.63489534,203.05,202.99,50.85692854]
[1753208054779,19.74224307,203.04,202.99,36.04]
[1753208054960,0.71,203.05,203.01,14.81692854]
[1753208055278,5.63494036,203.05,203.01,14.81692854]
[1753208055452,5.63494036,203.05,202.95,0.69]
[1753208055453,0.71,203.04,202.95,0.69]
[1753208055658,0.71,203.04,202.99,14.81692854]
[1753208055857,0.71,203.04,202.99,50.81692854]
[1753208056471,14.81692854,203.06,203.0,14.81692854]
[1753208056675,30.92441839,203.07,203.0,14.81692854]
[1753208056886,0.71,203.08,203.03,14.81692854]
[1753208057179,0.71,203.08,203.04,14.81692854]
[1753208057361,26.71,203.08,203.04,14.81692854]
[1753208058162,22.10962854,203.1,203.04,14.81692854]
[1753208058685,0.06,203.13,203.08,14.81692854]
[1753208058867,0.06,203.13,203.08,19.74101815]
[1753208059188,0.06,203.13,203.09,14.81692854]
[1753208059373,0.06,203.13,203.08,51.47692854]
[1753208059772,0.06,203.13,203.08,50.77692854]
[1753208060287,14.81692854,203.09,203.05,35.98]
[1753208060493,26.65,203.12,203.05,35.98]
[1753208060672,0.06,203.09,203.05,35.98]
[1753208060860,14.87692854,203.09,203.05,35.98]
[1753208061261,14.81692854,203.06,202.98,0.7]
[1753208061490,0.65,203.08,202.98,0.7]
[1753208061491,14.81692854,203.03,202.98,35.94]
[1753208061660,0.65,203.02,202.98,35.94]
[1753208062164,26.0,203.06,202.99,16.78468397]
[1753208062376,26.0,203.08,203.02,14.81692854]
[1753208062679,14.81692854,203.03,202.97,16.78468397]
[1753208062880,0.65,203.03,202.98,35.94]
[1753208063083,20.39125374,203.08,203.01,14.81692854]
[1753208063376,0.65,203.08,203.02,14.81692854]
[1753208063888,0.06,203.09,203.05,14.81692854]
[1753208064184,0.06,203.09,203.05,50.75692854]
[1753208064559,0.06,203.09,203.07,14.81692854]
[1753208064894,0.06,203.09,203.08,50.75692854]
[1753208065058,0.06,203.09,203.08,72.46578032]